[Event "Titled Tuesday Blitz May 31 Late 2022"]
[White "Riehle, Marco"]
[Black "Grischuk, Alexander"]
[WhiteFideId "12904392"]
[BlackFideId "4126025"]
[WhiteElo "2462"]
[BlackElo "2762"]
[Result "0-1"]
[Round "05"]
[TimeControl "180+1"]
[Date "2022.05.31"]
[WhiteClock "0:00:13"]
[BlackClock "0:00:09"]

1. e4 {[%clk 0:03:00]}  e6 {[%clk 0:03:00]} 2. c4 {[%clk 0:02:58]}  d5 {[%clk 0:02:59]} 3. cxd5 {[%clk 0:02:59]}  exd5 {[%clk 0:02:59]} 4. Qb3 {[%clk 0:02:56]}  Nf6 {[%clk 0:02:49]} 5. e5 {[%clk 0:02:54]}  Ne4 {[%clk 0:02:49]} 6. Nc3 {[%clk 0:02:55]}  Nxc3 {[%clk 0:02:44]} 7. bxc3 {[%clk 0:02:55]}  c5 {[%clk 0:02:38]} 8. Nf3 {[%clk 0:02:52]}  Nc6 {[%clk 0:02:37]} 9. Be2 {[%clk 0:02:46]}  Be7 {[%clk 0:02:36]} 10. O-O {[%clk 0:02:45]}  O-O {[%clk 0:02:37]} 11. d4 {[%clk 0:02:45]}  Qb6 {[%clk 0:01:33]} 12. Qxd5 {[%clk 0:02:30]}  Rd8 {[%clk 0:01:29]} 13. Qe4 {[%clk 0:02:22]}  cxd4 {[%clk 0:01:29]} 14. cxd4 {[%clk 0:01:44]}  Nxd4 {[%clk 0:01:28]} 15. Nxd4 {[%clk 0:01:45]}  Qxd4 {[%clk 0:01:27]} 16. Qxd4 {[%clk 0:01:42]}  Rxd4 {[%clk 0:01:28]} 17. Bf3 {[%clk 0:01:28]}  Be6 {[%clk 0:01:24]} 18. Bxb7 {[%clk 0:01:26]}  Rb8 {[%clk 0:01:25]} 19. Bf3 {[%clk 0:01:27]}  Ra4 {[%clk 0:01:22]} 20. a3 {[%clk 0:01:23]}  Bc5 {[%clk 0:01:21]} 21. h3 {[%clk 0:01:17]}  h6 {[%clk 0:01:19]} 22. Rd1 {[%clk 0:01:13]}  Bd4 {[%clk 0:01:16]} 23. Rxd4 {[%clk 0:00:57]}  Rxd4 {[%clk 0:01:16]} 24. a4 {[%clk 0:00:56]}  Rdb4 {[%clk 0:01:05]} 25. Be3 {[%clk 0:00:48]}  Rb1+ {[%clk 0:01:05]} 26. Rxb1 {[%clk 0:00:49]}  Rxb1+ {[%clk 0:01:06]} 27. Kh2 {[%clk 0:00:49]}  a5 {[%clk 0:00:38]} 28. Bd2 {[%clk 0:00:43]}  Bd7 {[%clk 0:00:30]} 29. Bxa5 {[%clk 0:00:42]}  Bxa4 {[%clk 0:00:30]} 30. Be4 {[%clk 0:00:40]}  Rb5 {[%clk 0:00:29]} 31. Bc3 {[%clk 0:00:40]}  Rc5 {[%clk 0:00:29]} 32. Ba1 {[%clk 0:00:39]}  Bc6 {[%clk 0:00:28]} 33. Bxc6 {[%clk 0:00:38]}  Rxc6 {[%clk 0:00:28]} 34. f4 {[%clk 0:00:36]}  Rc2 {[%clk 0:00:28]} 35. Bd4 {[%clk 0:00:35]}  Kf8 {[%clk 0:00:26]} 36. Kg3 {[%clk 0:00:35]}  Ke7 {[%clk 0:00:26]} 37. Kf3 {[%clk 0:00:33]}  Ke6 {[%clk 0:00:23]} 38. Be3 {[%clk 0:00:29]}  Kd5 {[%clk 0:00:22]} 39. g4 {[%clk 0:00:28]}  Rc3 {[%clk 0:00:22]} 40. h4 {[%clk 0:00:28]}  Rb3 {[%clk 0:00:18]} 41. h5 {[%clk 0:00:28]}  Ra3 {[%clk 0:00:18]} 42. Ke2 {[%clk 0:00:20]}  Ke4 {[%clk 0:00:17]} 43. Bd2 {[%clk 0:00:20]}  Rh3 {[%clk 0:00:12]} 44. Bc1 {[%clk 0:00:10]}  Rh2+ {[%clk 0:00:12]} 45. Ke1 {[%clk 0:00:10]}  Rh1+ {[%clk 0:00:11]} 46. Kd2 {[%clk 0:00:10]}  Kxf4 {[%clk 0:00:11]} 47. Kc2+ {[%clk 0:00:11]}  Kxg4 {[%clk 0:00:09]} 48. Bb2 {[%clk 0:00:12]}  Rh2+ {[%clk 0:00:09]} 49. Kb3 {[%clk 0:00:12]}  Rxb2+ {[%clk 0:00:09]} 50. Kxb2 {[%clk 0:00:13]}  Kf5 {[%clk 0:00:09]} 0-1


[Site "https://www.chess.com"]

[Event "Titled Tuesday Blitz May 31 Late 2022"]
[White "Rustemov, Alexander"]
[Black "Baches Garcia, Guillermo"]
[WhiteFideId "4119002"]
[BlackFideId "2209764"]
[WhiteElo "2794"]
[BlackElo "2501"]
[Result "1-0"]
[Round "05"]
[TimeControl "180+1"]
[Date "2022.06.01"]
[WhiteClock "0:00:54"]
[BlackClock "0:00:02"]

1. d4 {[%clk 0:03:00]}  Nf6 {[%clk 0:03:00]} 2. c4 {[%clk 0:03:00]}  e6 {[%clk 0:03:00]} 3. Nf3 {[%clk 0:03:00]}  d5 {[%clk 0:03:01]} 4. Nc3 {[%clk 0:03:00]}  c5 {[%clk 0:03:00]} 5. cxd5 {[%clk 0:02:58]}  Nxd5 {[%clk 0:03:00]} 6. g3 {[%clk 0:02:58]}  Nxc3 {[%clk 0:02:56]} 7. bxc3 {[%clk 0:02:58]}  cxd4 {[%clk 0:02:55]} 8. Qxd4 {[%clk 0:02:57]}  Nc6 {[%clk 0:02:52]} 9. Qxd8+ {[%clk 0:02:56]}  Nxd8 {[%clk 0:02:49]} 10. Bg2 {[%clk 0:02:56]}  Bd7 {[%clk 0:02:39]} 11. Ne5 {[%clk 0:02:48]}  Bc6 {[%clk 0:02:33]} 12. Nxc6 {[%clk 0:02:47]}  Nxc6 {[%clk 0:02:33]} 13. Rb1 {[%clk 0:02:43]}  O-O-O {[%clk 0:02:20]} 14. Be3 {[%clk 0:02:42]}  Kc7 {[%clk 0:02:05]} 15. O-O {[%clk 0:02:30]}  b6 {[%clk 0:01:58]} 16. Rfd1 {[%clk 0:02:23]}  Bc5 {[%clk 0:01:53]} 17. Bf4+ {[%clk 0:02:20]}  e5 {[%clk 0:01:44]} 18. Bd2 {[%clk 0:02:14]}  Rd6 {[%clk 0:01:32]} 19. Be1 {[%clk 0:02:10]}  Rhd8 {[%clk 0:01:30]} 20. Rxd6 {[%clk 0:02:10]}  Rxd6 {[%clk 0:01:29]} 21. Kf1 {[%clk 0:02:09]}  Na5 {[%clk 0:01:24]} 22. e3 {[%clk 0:02:07]}  f5 {[%clk 0:01:12]} 23. e4 {[%clk 0:02:02]}  g6 {[%clk 0:01:02]} 24. Ke2 {[%clk 0:02:01]}  Nc4 {[%clk 0:00:58]} 25. Rd1 {[%clk 0:02:00]}  Rxd1 {[%clk 0:00:53]} 26. Kxd1 {[%clk 0:02:01]}  f4 {[%clk 0:00:48]} 27. Ke2 {[%clk 0:01:52]}  Kd6 {[%clk 0:00:44]} 28. Kd3 {[%clk 0:01:51]}  b5 {[%clk 0:00:40]} 29. h4 {[%clk 0:01:49]}  h6 {[%clk 0:00:38]} 30. Bh3 {[%clk 0:01:48]}  g5 {[%clk 0:00:36]} 31. h5 {[%clk 0:01:46]}  Nb2+ {[%clk 0:00:31]} 32. Kc2 {[%clk 0:01:45]}  Nc4 {[%clk 0:00:31]} 33. Bc8 {[%clk 0:01:44]}  Kc7 {[%clk 0:00:28]} 34. Be6 {[%clk 0:01:43]}  Kd6 {[%clk 0:00:26]} 35. Bg8 {[%clk 0:01:43]}  Kc6 {[%clk 0:00:19]} 36. Bf7 {[%clk 0:01:41]}  Nd6 {[%clk 0:00:18]} 37. Bg6 {[%clk 0:01:40]}  Kb6 {[%clk 0:00:15]} 38. gxf4 {[%clk 0:01:38]}  gxf4 {[%clk 0:00:15]} 39. f3 {[%clk 0:01:38]}  Nc4 {[%clk 0:00:12]} 40. Bh4 {[%clk 0:01:38]}  Ne3+ {[%clk 0:00:11]} 41. Kd3 {[%clk 0:01:38]}  Bf8 {[%clk 0:00:09]} 42. Bf6 {[%clk 0:01:35]}  Nc4 {[%clk 0:00:09]} 43. Bf7 {[%clk 0:01:33]}  Kc5 {[%clk 0:00:05]} 44. Ke2 {[%clk 0:01:24]}  Kd6 {[%clk 0:00:05]} 45. Be8 {[%clk 0:01:21]}  a6 {[%clk 0:00:05]} 46. a4 {[%clk 0:01:17]}  bxa4 {[%clk 0:00:04]} 47. Bxa4 {[%clk 0:01:18]}  Nb6 {[%clk 0:00:03]} 48. Bb3 {[%clk 0:01:17]}  Be7 {[%clk 0:00:03]} 49. Bg7 {[%clk 0:01:16]}  Bg5 {[%clk 0:00:03]} 50. Kd3 {[%clk 0:01:14]}  a5 {[%clk 0:00:03]} 51. Bf8+ {[%clk 0:01:14]}  Kc6 {[%clk 0:00:04]} 52. Kc2 {[%clk 0:01:10]}  Bh4 {[%clk 0:00:03]} 53. Bxh6 {[%clk 0:01:09]}  a4 {[%clk 0:00:03]} 54. Ba2 {[%clk 0:01:07]}  Bf6 {[%clk 0:00:03]} 55. Bf8 {[%clk 0:01:06]}  Nd7 {[%clk 0:00:02]} 56. Bb4 {[%clk 0:01:04]}  Kb5 {[%clk 0:00:02]} 57. h6 {[%clk 0:01:02]}  Nc5 {[%clk 0:00:02]} 58. Bf7 {[%clk 0:00:56]}  Na6 {[%clk 0:00:02]} 59. Be8+ {[%clk 0:00:56]}  Kc4 {[%clk 0:00:02]} 60. Bf8 {[%clk 0:00:54]} 1-0


[Site "https://www.chess.com"]

[Event "Titled Tuesday Blitz May 31 Late 2022"]
[White "Rychagov, Andrey"]
[Black "Niemann, Hans Moke"]
[WhiteFideId "4119932"]
[BlackFideId "2093596"]
[WhiteElo "2500"]
[BlackElo "2632"]
[Result "0-1"]
[Round "05"]
[TimeControl "180+1"]
[Date "2022.05.31"]
[WhiteClock "0:00:02"]
[BlackClock "0:00:04"]

1. d4 {[%clk 0:02:56]}  Nf6 {[%clk 0:03:00]} 2. c4 {[%clk 0:02:56]}  g6 {[%clk 0:02:59]} 3. Nc3 {[%clk 0:02:55]}  Bg7 {[%clk 0:02:59]} 4. e4 {[%clk 0:02:54]}  d6 {[%clk 0:03:00]} 5. Nf3 {[%clk 0:02:54]}  O-O {[%clk 0:03:00]} 6. Be2 {[%clk 0:02:55]}  Bg4 {[%clk 0:03:01]} 7. Be3 {[%clk 0:02:53]}  e5 {[%clk 0:02:59]} 8. d5 {[%clk 0:02:50]}  a5 {[%clk 0:02:56]} 9. Nd2 {[%clk 0:02:47]}  Bxe2 {[%clk 0:02:55]} 10. Qxe2 {[%clk 0:02:48]}  Na6 {[%clk 0:02:55]} 11. O-O {[%clk 0:02:47]}  h5 {[%clk 0:02:51]} 12. h3 {[%clk 0:02:40]}  Nc5 {[%clk 0:02:49]} 13. b3 {[%clk 0:02:31]}  Nfd7 {[%clk 0:02:35]} 14. a3 {[%clk 0:02:30]}  f5 {[%clk 0:02:35]} 15. b4 {[%clk 0:02:05]}  axb4 {[%clk 0:02:29]} 16. axb4 {[%clk 0:02:05]}  Rxa1 {[%clk 0:02:28]} 17. Rxa1 {[%clk 0:02:04]}  Na6 {[%clk 0:02:29]} 18. exf5 {[%clk 0:01:58]}  gxf5 {[%clk 0:02:25]} 19. Qxh5 {[%clk 0:01:42]}  f4 {[%clk 0:02:22]} 20. Ba7 {[%clk 0:01:41]}  Nxb4 {[%clk 0:02:07]} 21. Nde4 {[%clk 0:01:34]}  b6 {[%clk 0:01:54]} 22. Nb5 {[%clk 0:01:16]}  Nc2 {[%clk 0:01:50]} 23. Ra2 {[%clk 0:01:08]}  Nd4 {[%clk 0:01:50]} 24. Qg6 {[%clk 0:00:53]}  Nf6 {[%clk 0:01:15]} 25. Ng5 {[%clk 0:00:53]}  Nxb5 {[%clk 0:01:02]} 26. Ne6 {[%clk 0:00:49]}  Qe7 {[%clk 0:00:59]} 27. Nxf8 {[%clk 0:00:37]}  Kxf8 {[%clk 0:00:48]} 28. cxb5 {[%clk 0:00:33]}  Qe8 {[%clk 0:00:49]} 29. Qd3 {[%clk 0:00:26]}  e4 {[%clk 0:00:47]} 30. Qc4 {[%clk 0:00:26]}  e3 {[%clk 0:00:45]} 31. fxe3 {[%clk 0:00:25]}  Qxe3+ {[%clk 0:00:45]} 32. Kh2 {[%clk 0:00:22]}  Ne4 {[%clk 0:00:38]} 33. Qxc7 {[%clk 0:00:18]}  Be5 {[%clk 0:00:29]} 34. Qd8+ {[%clk 0:00:10]}  Kf7 {[%clk 0:00:27]} 35. Qd7+ {[%clk 0:00:10]}  Kg6 {[%clk 0:00:14]} 36. Qg4+ {[%clk 0:00:10]}  Kf7 {[%clk 0:00:09]} 37. Qe6+ {[%clk 0:00:10]}  Kg7 {[%clk 0:00:09]} 38. Qg4+ {[%clk 0:00:10]}  Kh6 {[%clk 0:00:09]} 39. Qh4+ {[%clk 0:00:10]}  Kg6 {[%clk 0:00:09]} 40. Qg4+ {[%clk 0:00:10]}  Kh7 {[%clk 0:00:07]} 41. Qf3 {[%clk 0:00:10]}  Ng3 {[%clk 0:00:05]} 42. Ra3 {[%clk 0:00:06]}  Qe1 {[%clk 0:00:04]} 43. Qd3+ {[%clk 0:00:02]}  Kg7 {[%clk 0:00:04]} 0-1


[Site "https://www.chess.com"]

[Event "Titled Tuesday Blitz May 31 Late 2022"]
[White "Samarth, J Rao"]
[Black "Proudian, Armen"]
[WhiteFideId "46652370"]
[BlackFideId "2130734"]
[WhiteElo "1514"]
[BlackElo "2380"]
[Result "0-1"]
[Round "05"]
[TimeControl "180+1"]
[Date "2022.06.01"]
[WhiteClock "0:00:01"]
[BlackClock "0:00:12"]

1. e4 {[%clk 0:03:00]}  e5 {[%clk 0:03:00]} 2. d4 {[%clk 0:02:59]}  exd4 {[%clk 0:02:58]} 3. Qxd4 {[%clk 0:03:00]}  Nc6 {[%clk 0:02:58]} 4. Qe3 {[%clk 0:02:59]}  Nf6 {[%clk 0:02:59]} 5. Bd2 {[%clk 0:02:58]}  Be7 {[%clk 0:02:59]} 6. Nc3 {[%clk 0:02:58]}  d5 {[%clk 0:02:58]} 7. exd5 {[%clk 0:02:53]}  Nxd5 {[%clk 0:02:59]} 8. Nxd5 {[%clk 0:02:53]}  Qxd5 {[%clk 0:02:59]} 9. O-O-O {[%clk 0:02:53]}  Qxa2 {[%clk 0:03:00]} 10. Bc3 {[%clk 0:02:49]}  Bd7 {[%clk 0:03:00]} 11. b3 {[%clk 0:02:48]}  O-O-O {[%clk 0:02:56]} 12. Bd3 {[%clk 0:02:32]}  Ba3+ {[%clk 0:02:44]} 13. Kd2 {[%clk 0:02:32]}  Bf5 {[%clk 0:02:44]} 14. Ra1 {[%clk 0:02:17]}  Rxd3+ {[%clk 0:01:51]} 15. Qxd3 {[%clk 0:02:01]}  Bxd3 {[%clk 0:01:37]} 16. Rxa2 {[%clk 0:02:00]}  Bf1 {[%clk 0:01:38]} 17. Ne2 {[%clk 0:01:48]}  Rd8+ {[%clk 0:01:31]} 18. Ke1 {[%clk 0:01:42]}  Bxe2 {[%clk 0:00:57]} 19. Kxe2 {[%clk 0:01:32]}  Bf8 {[%clk 0:00:48]} 20. Raa1 {[%clk 0:01:23]}  f6 {[%clk 0:00:46]} 21. Rad1 {[%clk 0:01:21]}  Bd6 {[%clk 0:00:47]} 22. g3 {[%clk 0:01:16]}  a5 {[%clk 0:00:43]} 23. f4 {[%clk 0:01:16]}  b5 {[%clk 0:00:43]} 24. Rd5 {[%clk 0:01:10]}  b4 {[%clk 0:00:41]} 25. Bb2 {[%clk 0:01:10]}  Kb7 {[%clk 0:00:41]} 26. Rhd1 {[%clk 0:01:07]}  Kb6 {[%clk 0:00:40]} 27. Kf3 {[%clk 0:00:56]}  Ra8 {[%clk 0:00:40]} 28. Ra1 {[%clk 0:00:46]}  Ne7 {[%clk 0:00:39]} 29. Rd3 {[%clk 0:00:44]}  Nc6 {[%clk 0:00:37]} 30. Bc1 {[%clk 0:00:44]}  Bc5 {[%clk 0:00:34]} 31. Be3 {[%clk 0:00:42]}  Bxe3 {[%clk 0:00:34]} 32. Kxe3 {[%clk 0:00:43]}  Re8+ {[%clk 0:00:34]} 33. Kf2 {[%clk 0:00:43]}  Na7 {[%clk 0:00:30]} 34. Rd7 {[%clk 0:00:33]}  Rg8 {[%clk 0:00:28]} 35. Re1 {[%clk 0:00:30]}  Nb5 {[%clk 0:00:28]} 36. Ree7 {[%clk 0:00:29]}  g5 {[%clk 0:00:28]} 37. f5 {[%clk 0:00:21]}  h5 {[%clk 0:00:25]} 38. Re6+ {[%clk 0:00:16]}  Nd6 {[%clk 0:00:21]} 39. Rxf6 {[%clk 0:00:16]}  Kc6 {[%clk 0:00:21]} 40. Re7 {[%clk 0:00:15]}  Ra8 {[%clk 0:00:20]} 41. Rfe6 {[%clk 0:00:14]}  a4 {[%clk 0:00:20]} 42. bxa4 {[%clk 0:00:14]}  Rxa4 {[%clk 0:00:21]} 43. f6 {[%clk 0:00:13]}  Ra8 {[%clk 0:00:19]} 44. Re5 {[%clk 0:00:05]}  Rf8 {[%clk 0:00:19]} 45. Rxg5 {[%clk 0:00:04]}  Rxf6+ {[%clk 0:00:17]} 46. Kg2 {[%clk 0:00:04]}  h4 {[%clk 0:00:15]} 47. gxh4 {[%clk 0:00:04]}  Rf4 {[%clk 0:00:15]} 48. Kg3 {[%clk 0:00:03]}  Rc4 {[%clk 0:00:16]} 49. Rg4 {[%clk 0:00:03]}  Nf5+ {[%clk 0:00:15]} 50. Kf3 {[%clk 0:00:03]}  Rxg4 {[%clk 0:00:14]} 51. Re6+ {[%clk 0:00:02]}  Kd7 {[%clk 0:00:15]} 52. Rf6 {[%clk 0:00:02]}  Rxh4 {[%clk 0:00:11]} 53. Rxf5 {[%clk 0:00:02]}  Rxh2 {[%clk 0:00:12]} 54. Rf4 {[%clk 0:00:01]}  c5 {[%clk 0:00:11]} 55. Rc4 {[%clk 0:00:02]}  Kd6 {[%clk 0:00:11]} 56. Ke3 {[%clk 0:00:02]}  Kd5 {[%clk 0:00:11]} 57. Rg4 {[%clk 0:00:01]}  Rxc2 {[%clk 0:00:12]} 0-1


[Site "https://www.chess.com"]

[Event "Titled Tuesday Blitz May 31 Late 2022"]
[White "Toncheva, Nadya"]
[Black "Kohler, Aran"]
[WhiteFideId "2924056"]
[BlackFideId "1002856"]
[WhiteElo "1888"]
[BlackElo "2256"]
[Result "1/2-1/2"]
[Round "05"]
[TimeControl "180+1"]
[Date "2022.06.01"]
[WhiteClock "0:00:17"]
[BlackClock "0:00:09"]

1. e4 {[%clk 0:02:49]}  e5 {[%clk 0:02:59]} 2. Nf3 {[%clk 0:02:49]}  Nc6 {[%clk 0:02:58]} 3. Bc4 {[%clk 0:02:48]}  Nf6 {[%clk 0:02:58]} 4. d3 {[%clk 0:02:46]}  Be7 {[%clk 0:02:56]} 5. O-O {[%clk 0:02:46]}  O-O {[%clk 0:02:56]} 6. Re1 {[%clk 0:02:46]}  d6 {[%clk 0:02:42]} 7. c3 {[%clk 0:02:45]}  Bg4 {[%clk 0:02:37]} 8. Nbd2 {[%clk 0:02:42]}  Rb8 {[%clk 0:02:31]} 9. a4 {[%clk 0:02:34]}  a6 {[%clk 0:02:29]} 10. a5 {[%clk 0:02:34]}  h6 {[%clk 0:02:24]} 11. Nf1 {[%clk 0:02:32]}  d5 {[%clk 0:02:16]} 12. exd5 {[%clk 0:02:31]}  Nxd5 {[%clk 0:02:16]} 13. h3 {[%clk 0:02:31]}  Bh5 {[%clk 0:02:02]} 14. g4 {[%clk 0:02:26]}  Bg6 {[%clk 0:01:59]} 15. Nxe5 {[%clk 0:02:26]}  Nxe5 {[%clk 0:01:58]} 16. Rxe5 {[%clk 0:02:27]}  c6 {[%clk 0:01:53]} 17. Qf3 {[%clk 0:02:17]}  Bd6 {[%clk 0:01:52]} 18. Re1 {[%clk 0:02:16]}  Re8 {[%clk 0:01:44]} 19. Bd2 {[%clk 0:02:14]}  Rxe1 {[%clk 0:01:39]} 20. Bxe1 {[%clk 0:02:00]}  Nf4 {[%clk 0:01:05]} 21. Bd2 {[%clk 0:01:58]}  Qc7 {[%clk 0:01:06]} 22. Re1 {[%clk 0:01:51]}  Rf8 {[%clk 0:00:54]} 23. Ng3 {[%clk 0:01:49]}  Nxh3+ {[%clk 0:00:53]} 24. Kf1 {[%clk 0:01:37]}  Bxg3 {[%clk 0:00:49]} 25. fxg3 {[%clk 0:01:35]}  Ng5 {[%clk 0:00:48]} 26. Qf4 {[%clk 0:01:31]}  Qxa5 {[%clk 0:00:46]} 27. Re7 {[%clk 0:01:25]}  Qa1+ {[%clk 0:00:41]} 28. Bc1 {[%clk 0:01:25]}  Ne6 {[%clk 0:00:38]} 29. Qd2 {[%clk 0:01:10]}  b5 {[%clk 0:00:34]} 30. Bb3 {[%clk 0:01:04]}  Nc5 {[%clk 0:00:24]} 31. Bc2 {[%clk 0:01:04]}  Rd8 {[%clk 0:00:19]} 32. d4 {[%clk 0:01:04]}  Bxc2 {[%clk 0:00:14]} 33. Qxc2 {[%clk 0:01:04]}  Nb3 {[%clk 0:00:14]} 34. Qxb3 {[%clk 0:01:02]}  Qxc1+ {[%clk 0:00:13]} 35. Kg2 {[%clk 0:01:02]}  Qd2+ {[%clk 0:00:11]} 36. Kh3 {[%clk 0:01:02]}  Rf8 {[%clk 0:00:11]} 37. Rc7 {[%clk 0:00:46]}  Qf2 {[%clk 0:00:11]} 38. Rxc6 {[%clk 0:00:43]}  Qg1 {[%clk 0:00:11]} 39. Qd5 {[%clk 0:00:42]}  Qf1+ {[%clk 0:00:10]} 40. Qg2 {[%clk 0:00:42]}  Qd3 {[%clk 0:00:08]} 41. Rxa6 {[%clk 0:00:41]}  b4 {[%clk 0:00:07]} 42. Rc6 {[%clk 0:00:39]}  b3 {[%clk 0:00:07]} 43. Rb6 {[%clk 0:00:34]}  Qc2 {[%clk 0:00:05]} 44. d5 {[%clk 0:00:34]}  Re8 {[%clk 0:00:05]} 45. Qf1 {[%clk 0:00:20]}  Re2 {[%clk 0:00:06]} 46. Rb8+ {[%clk 0:00:18]}  Kh7 {[%clk 0:00:06]} 47. Qf5+ {[%clk 0:00:19]}  Qxf5 {[%clk 0:00:05]} 48. gxf5 {[%clk 0:00:20]}  Rxb2 {[%clk 0:00:05]} 49. c4 {[%clk 0:00:19]}  Rc2 {[%clk 0:00:04]} 50. Rxb3 {[%clk 0:00:17]}  Rxc4 {[%clk 0:00:05]} 51. Rd3 {[%clk 0:00:18]}  Rc8 {[%clk 0:00:05]} 52. d6 {[%clk 0:00:19]}  Rd8 {[%clk 0:00:05]} 53. d7 {[%clk 0:00:20]}  Kg8 {[%clk 0:00:05]} 54. Kg4 {[%clk 0:00:18]}  Kf8 {[%clk 0:00:05]} 55. f6 {[%clk 0:00:17]}  gxf6 {[%clk 0:00:05]} 56. Kf5 {[%clk 0:00:18]}  Ke7 {[%clk 0:00:05]} 57. g4 {[%clk 0:00:13]}  Rxd7 {[%clk 0:00:05]} 58. Rxd7+ {[%clk 0:00:13]}  Kxd7 {[%clk 0:00:06]} 59. Kxf6 {[%clk 0:00:14]}  Ke8 {[%clk 0:00:06]} 60. Kg7 {[%clk 0:00:15]}  Ke7 {[%clk 0:00:06]} 61. Kxh6 {[%clk 0:00:15]}  Kf6 {[%clk 0:00:07]} 62. Kh5 {[%clk 0:00:15]}  Kg7 {[%clk 0:00:07]} 63. Kg5 {[%clk 0:00:16]}  f6+ {[%clk 0:00:07]} 64. Kf5 {[%clk 0:00:16]}  Kf7 {[%clk 0:00:07]} 65. Kf4 {[%clk 0:00:16]}  Kg6 {[%clk 0:00:08]} 66. Kf3 {[%clk 0:00:16]}  Kg5 {[%clk 0:00:09]} 67. Kg3 {[%clk 0:00:16]}  f5 {[%clk 0:00:09]} 68. gxf5 {[%clk 0:00:17]}  Kxf5 {[%clk 0:00:09]} 1/2-1/2


[Site "https://www.chess.com"]

[Event "Titled Tuesday Blitz May 31 Late 2022"]
[White "Vajda, Levente"]
[Black "Sadhwani, Raunak"]
[WhiteFideId "1203975"]
[BlackFideId "35093487"]
[WhiteElo "2573"]
[BlackElo "2616"]
[Result "0-1"]
[Round "05"]
[TimeControl "180+1"]
[Date "2022.05.31"]
[WhiteClock "0:00:18"]
[BlackClock "0:00:51"]

1. e4 {[%clk 0:03:00]}  e5 {[%clk 0:03:00]} 2. Nf3 {[%clk 0:03:00]}  Nc6 {[%clk 0:03:01]} 3. Bc4 {[%clk 0:03:00]}  d6 {[%clk 0:03:01]} 4. d4 {[%clk 0:03:00]}  exd4 {[%clk 0:03:02]} 5. Nxd4 {[%clk 0:03:00]}  Nf6 {[%clk 0:03:03]} 6. Nc3 {[%clk 0:03:01]}  Be7 {[%clk 0:03:03]} 7. O-O {[%clk 0:03:01]}  O-O {[%clk 0:03:04]} 8. a4 {[%clk 0:03:00]}  Re8 {[%clk 0:03:03]} 9. Ba2 {[%clk 0:03:01]}  Nxd4 {[%clk 0:02:55]} 10. Qxd4 {[%clk 0:03:00]}  Nd7 {[%clk 0:02:56]} 11. Bf4 {[%clk 0:02:56]}  Bf6 {[%clk 0:02:54]} 12. Qc4 {[%clk 0:02:54]}  Rf8 {[%clk 0:02:35]} 13. Rfe1 {[%clk 0:02:52]}  Ne5 {[%clk 0:02:30]} 14. Qe2 {[%clk 0:02:50]}  Ng6 {[%clk 0:02:29]} 15. Bg3 {[%clk 0:02:50]}  Be6 {[%clk 0:02:21]} 16. Nd5 {[%clk 0:02:42]}  Bxd5 {[%clk 0:02:14]} 17. Bxd5 {[%clk 0:02:41]}  c6 {[%clk 0:02:15]} 18. Ba2 {[%clk 0:02:39]}  Be5 {[%clk 0:02:14]} 19. c3 {[%clk 0:02:32]}  Qf6 {[%clk 0:02:14]} 20. Rad1 {[%clk 0:02:30]}  Rad8 {[%clk 0:02:13]} 21. Qe3 {[%clk 0:02:26]}  a6 {[%clk 0:02:12]} 22. Qb6 {[%clk 0:02:26]}  Rd7 {[%clk 0:02:11]} 23. Rd3 {[%clk 0:02:19]}  h5 {[%clk 0:02:11]} 24. Rf3 {[%clk 0:02:17]}  Qd8 {[%clk 0:01:56]} 25. Qxd8 {[%clk 0:02:15]}  Rfxd8 {[%clk 0:01:57]} 26. Rd1 {[%clk 0:01:59]}  h4 {[%clk 0:01:45]} 27. Bxe5 {[%clk 0:01:58]}  Nxe5 {[%clk 0:01:46]} 28. Re3 {[%clk 0:01:57]}  g5 {[%clk 0:01:46]} 29. f3 {[%clk 0:01:57]}  Kg7 {[%clk 0:01:46]} 30. Kf2 {[%clk 0:01:57]}  Kf6 {[%clk 0:01:41]} 31. g3 {[%clk 0:01:57]}  hxg3+ {[%clk 0:01:37]} 32. hxg3 {[%clk 0:01:58]}  Rh8 {[%clk 0:01:38]} 33. Kg2 {[%clk 0:01:57]}  Ke7 {[%clk 0:01:36]} 34. Rh1 {[%clk 0:01:53]}  Rxh1 {[%clk 0:01:35]} 35. Kxh1 {[%clk 0:01:54]}  b5 {[%clk 0:01:35]} 36. a5 {[%clk 0:01:45]}  Rb7 {[%clk 0:01:35]} 37. b4 {[%clk 0:01:40]}  Rc7 {[%clk 0:01:31]} 38. f4 {[%clk 0:01:40]}  gxf4 {[%clk 0:01:29]} 39. gxf4 {[%clk 0:01:40]}  Ng6 {[%clk 0:01:30]} 40. e5 {[%clk 0:01:08]}  Nxf4 {[%clk 0:01:22]} 41. exd6+ {[%clk 0:01:02]}  Kxd6 {[%clk 0:01:23]} 42. c4 {[%clk 0:01:03]}  Re7 {[%clk 0:00:50]} 43. Rxe7 {[%clk 0:00:50]}  Kxe7 {[%clk 0:00:51]} 44. cxb5 {[%clk 0:00:38]}  cxb5 {[%clk 0:00:52]} 45. Kg1 {[%clk 0:00:23]}  Nd3 {[%clk 0:00:51]} 46. Bd5 {[%clk 0:00:23]}  Nxb4 {[%clk 0:00:52]} 47. Bb7 {[%clk 0:00:24]}  Kd7 {[%clk 0:00:52]} 48. Kf2 {[%clk 0:00:24]}  Kc7 {[%clk 0:00:52]} 49. Be4 {[%clk 0:00:23]}  Nc6 {[%clk 0:00:53]} 50. Bd5 {[%clk 0:00:23]}  f6 {[%clk 0:00:53]} 51. Ke3 {[%clk 0:00:24]}  Nxa5 {[%clk 0:00:53]} 52. Kd4 {[%clk 0:00:24]}  Nc6+ {[%clk 0:00:53]} 53. Kc5 {[%clk 0:00:24]}  Nb8 {[%clk 0:00:53]} 54. Be6 {[%clk 0:00:18]}  Nd7+ {[%clk 0:00:52]} 55. Kd5 {[%clk 0:00:18]}  Nb6+ {[%clk 0:00:52]} 56. Kc5 {[%clk 0:00:18]}  Na4+ {[%clk 0:00:51]} 57. Kb4 {[%clk 0:00:18]}  Kb6 {[%clk 0:00:51]} 0-1


[Site "https://www.chess.com"]